bitfinex/quotes_SOLUSD_20251212
["timestamp","ask_amount","ask_price","bid_price","bid_amount"]
[1765546377889,18.50479589,139.16,139.15,0.2]
[1765546381905,15.72597298,139.16,139.15,0.2]
[1765546382111,18.50479589,139.16,139.15,0.2]
[1765546382504,18.50479589,139.16,139.15,1e-08]
[1765546382505,27.59906395,139.16,139.15,1e-08]
[1765546382909,30.4768653,139.16,139.15,1e-08]
[1765546383513,27.69804239,139.16,139.15,1e-08]
[1765546383713,30.4768653,139.16,139.15,1e-08]
[1765546384310,103.66,139.15,139.13,1e-08]
[1765546384510,119.48591411,139.15,139.13,1e-08]
[1765546384705,8.54,139.14,139.13,1e-08]
[1765546384902,7.88,139.14,139.13,1e-08]
[1765546385502,103.0,139.15,139.13,0.61000001]
[1765546385710,7.18597298,139.16,139.13,3.38857083]
[1765546386028,7.88,139.15,139.13,3.38857083]
[1765546386197,7.88,139.15,139.14,0.61]
[1765546386726,7.18563379,139.17,139.14,3.38857082]
[1765546386902,15.06563379,139.17,139.15,2.77857082]
[1765546387224,15.06563379,139.17,139.15,3.38857082]
[1765546387400,15.06563379,139.17,139.16,0.61]
[1765546388104,7.88,139.17,139.16,0.61]
[1765546388521,7.88,139.17,139.16,3.38857082]
[1765546388922,7.18466592,139.19,139.16,3.38857082]
[1765546388923,15.06466592,139.19,139.16,3.38857082]
[1765546389132,15.06466592,139.19,139.17,0.61]
[1765546389543,15.06466592,139.19,139.17,3.38857082]
[1765546390014,15.06466592,139.19,139.18,0.61]
[1765546390634,15.06466592,139.19,139.18,3.38857082]
[1765546390635,7.88,139.19,139.18,3.38857082]
[1765546391523,7.88,139.21,139.18,10.57344129]
[1765546391722,7.88,139.21,139.19,3.38857082]
[1765546391943,7.88,139.21,139.2,0.61]
[1765546393745,15.06339199,139.21,139.2,0.61]
[1765546393946,15.06339199,139.21,139.18,0.61]
[1765546397835,33.71187198,139.21,139.18,0.61]
[1765546398659,33.02187198,139.21,139.18,0.61]
[1765546400767,7.18302171,139.22,139.19,2.77857082]
[1765546400944,7.88,139.21,139.19,2.77857082]
[1765546401143,7.88,139.21,139.2,0.61]
[1765546403062,105.77857082,139.25,139.2,0.61]
[1765546403063,0.71,139.26,139.2,3.38857082]
[1765546403366,7.88,139.25,139.23,2.77857082]
[1765546403552,7.88,139.24,139.23,2.77857082]
[1765546403748,7.86,139.25,139.24,0.61]
[1765546404457,7.86,139.25,139.24,3.38857082]
[1765546404670,15.0405927,139.27,139.24,3.38857082]
[1765546404862,15.0405927,139.27,139.25,0.61]
[1765546405647,15.0405927,139.27,139.25,3.38857082]
[1765546405648,7.86,139.27,139.25,3.38857082]
[1765546405848,7.86,139.27,139.26,0.61]
[1765546406249,7.86,139.27,139.26,3.38857082]
[1765546406445,7.17948933,139.29,139.26,3.38857082]
[1765546406671,15.03948933,139.29,139.27,0.61]
[1765546407344,7.86,139.29,139.27,0.61]
[1765546407552,7.86,139.29,139.27,3.38857082]
[1765546408166,7.86,139.29,139.28,0.61]
[1765546410476,7.86,139.29,139.28,10.56835255]
[1765546410775,15.03837583,139.31,139.28,10.56835255]
[1765546410952,15.03837583,139.31,139.29,0.61]
[1765546416882,7.86,139.31,139.29,0.61]
[1765546417771,120.9423895,139.34,139.29,0.61]
[1765546417772,7.17709936,139.34,139.3,2.77857082]
[1765546417972,7.86,139.33,139.31,0.61]
[1765546419805,7.86,139.33,139.31,7.78804195]
[1765546420697,7.86,139.33,139.32,0.61]
[1765546420899,0.2,139.35,139.32,0.61]
[1765546420900,8.06,139.35,139.32,0.61]
[1765546421289,8.06,139.35,139.32,3.38053326]
[1765546421488,8.06,139.35,139.33,3.38053326]
[1765546421880,8.06,139.35,139.34,0.61]
[1765546422414,8.06,139.35,139.33,3.38053326]
[1765546422711,8.06,139.35,139.33,10.55769802]
[1765546423205,0.2,139.35,139.33,9.94769802]
[1765546423507,0.2,139.35,139.34,3.38053326]
[1765546424706,0.2,139.35,139.34,10.55722337]
[1765546425010,0.2,139.35,139.34,19.36716829]
[1765546425982,0.1,139.4,139.37,13.0470912]
[1765546426192,0.1,139.4,139.39,2.77053326]
[1765546426403,0.1,139.4,139.39,3.38053326]
[1765546428187,0.1,139.4,139.39,10.55464905]
[1765546429309,0.1,139.4,139.39,22.23557907]
[1765546429805,0.1,139.4,139.39,35.28267027]
[1765546430202,0.1,139.4,139.39,43.42699341]
[1765546431622,0.1,139.41,139.4,0.28432314]
[1765546431814,0.1,139.41,139.4,3.6648564]
[1765546431987,0.1,139.41,139.4,25.23756938]
[1765546432789,0.1,139.41,139.4,25.52189252]
[1765546433109,0.1,139.42,139.41,16.26735463]
[1765546433312,0.1,139.42,139.41,19.64788789]
[1765546433700,0.1,139.46,139.41,19.64788789]
[1765546433701,0.1,139.46,139.44,13.0470912]
[1765546433894,0.1,139.46,139.45,2.77053326]
[1765546435231,0.1,139.46,139.45,9.9415623]
[1765546435630,0.1,139.46,139.45,19.36150722]
[1765546436526,0.1,139.46,139.45,9.9415623]
[1765546438007,0.1,139.46,139.45,11.49006374]
[1765546441539,0.1,139.46,139.45,17.3661259]
[1765546441834,0.1,139.46,139.43,2.86995515]
[1765546441835,5.0790347,139.46,139.43,2.86995515]
[1765546442037,4.3190347,139.44,139.39,7.17383011]
[1765546442411,0.66,139.43,139.39,4.3190347]
[1765546442615,4.9790347,139.43,139.38,24.54057044]
[1765546442816,0.66,139.43,139.39,4.3190347]
[1765546443031,0.66,139.42,139.39,4.3190347]
[1765546443410,0.66,139.42,139.39,11.49313768]
[1765546444316,0.66,139.45,139.41,4.3190347]
[1765546444518,0.66,139.45,139.43,4.3190347]
[1765546444715,7.83113624,139.45,139.43,4.3190347]
[1765546445017,7.83113624,139.45,139.42,4.3190347]
[1765546445234,0.66,139.44,139.42,4.3190347]
[1765546446641,7.83172155,139.44,139.4,4.3190347]
[1765546447029,0.66,139.43,139.4,4.3190347]
[1765546447554,0.1,139.46,139.42,4.3190347]
[1765546447555,0.76,139.46,139.42,4.3190347]
[1765546447846,0.1,139.46,139.45,4.3190347]
[1765546448943,0.1,139.46,139.43,13.0470912]
[1765546449154,0.76,139.46,139.43,17.3661259]
[1765546449358,0.76,139.46,139.42,4.3190347]
[1765546449767,0.76,139.46,139.43,4.3190347]
[1765546450844,7.17102904,139.45,139.43,4.3190347]
[1765546451145,7.17102904,139.45,139.42,4.3190347]
[1765546451353,7.83102904,139.45,139.42,4.3190347]
[1765546451740,0.66,139.45,139.43,4.3190347]
[1765546451936,0.1,139.46,139.44,4.3190347]
[1765546452170,0.1,139.46,139.45,4.3198267]
[1765546453086,0.1,139.46,139.45,33.95789186]
[1765546453579,0.1,139.46,139.45,41.88744483]
[1765546454474,0.1,139.47,139.46,8.80994492]
[1765546454788,0.1,139.47,139.46,13.73977162]
[1765546454978,0.1,139.47,139.46,20.91028646]
[1765546456588,0.1,139.48,139.46,20.91028646]
[1765546456891,0.1,139.48,139.47,18.26124104]
[1765546457058,0.2,139.49,139.47,21.19409547]
[1765546457264,0.1,139.5,139.49,0.28432314]
[1765546457604,0.1,139.5,139.49,18.26124104]
[1765546457976,0.1,139.5,139.49,21.1297555]
[1765546458187,0.1,139.5,139.49,21.21243592]
[1765546459272,0.1,139.5,139.49,28.3814086]
[1765546459471,0.1,139.5,139.49,24.0615819]
[1765546460464,0.1,139.51,139.5,8.80994492]
[1765546460666,0.1,139.51,139.5,18.05959832]
[1765546461066,0.1,139.51,139.5,13.73977162]
[1765546462591,0.1,139.51,139.5,20.9082304]
[1765546464465,0.1,139.51,139.5,23.1663335]
[1765546464776,0.82,139.51,139.46,26.39564433]
[1765546464976,0.82,139.51,139.49,17.3669179]
[1765546465494,0.1,139.51,139.5,11.48828548]
[1765546465695,0.82,139.51,139.5,11.48828548]
[1765546470402,0.1,139.51,139.5,11.48828548]
[1765546470584,0.1,139.51,139.5,20.9082304]
[1765546471198,0.1,139.51,139.5,20.2982304]
[1765546471398,0.82,139.51,139.5,4.3198267]
[1765546473298,0.1,139.51,139.5,11.48828548]
[1765546474088,0.82,139.51,139.47,11.48966269]
[1765546475479,7.98816905,139.51,139.47,11.48966269]
[1765546475882,0.72,139.5,139.47,7.16983599]
[1765546476402,0.1,139.51,139.49,4.3198267]
[1765546476610,0.1,139.51,139.5,4.3198267]
[1765546478103,0.1,139.51,139.5,11.48828548]
[1765546478306,0.1,139.51,139.5,20.2982304]
[1765546484318,5.0798267,139.51,139.46,24.53725121]
[1765546484517,5.0798267,139.51,139.47,13.0470912]
[1765546484821,0.66,139.5,139.47,13.0470912]
[1765546485294,0.66,139.5,139.47,24.53683375]
[1765546485614,0.66,139.5,139.48,4.31810582]
[1765546487306,0.66,139.5,139.48,11.48757422]
[1765546489228,0.1,139.51,139.49,4.31810582]
[1765546490533,0.76,139.51,139.49,4.31810582]
[1765546491101,0.76,139.51,139.49,11.48667438]
[1765546491929,0.1,139.51,139.49,11.48667438]
[1765546492500,0.1,139.51,139.5,4.92810582]
[1765546492809,0.1,139.51,139.5,4.31810582]
[1765546495039,0.1,139.51,139.5,11.4865646]
[1765546495405,0.1,139.51,139.5,20.29650952]
[1765546495741,0.1,139.51,139.5,20.90650952]
[1765546496097,0.1,139.51,139.5,20.29650952]
[1765546498029,0.1,139.51,139.5,11.4865646]
[1765546498534,0.1,139.51,139.5,20.29650952]
[1765546499129,0.76,139.51,139.49,17.36519702]
[1765546499915,0.76,139.51,139.49,15.8102378]
[1765546500115,0.76,139.51,139.49,22.97913053]
[1765546502532,0.1,139.51,139.5,2.7631466]
[1765546503344,0.1,139.51,139.5,12.18309152]
[1765546503642,0.1,139.51,139.5,11.57309152]
[1765546503846,0.1,139.51,139.5,18.7415503]
[1765546504356,0.76,139.51,139.5,2.7631466]
[1765546504539,0.76,139.51,139.49,15.8102378]
[1765546504739,0.76,139.51,139.49,13.0470912]
[1765546504907,0.76,139.51,139.46,30.5674962]
[1765546505109,0.76,139.51,139.5,2.7631466]
[1765546505412,0.1,139.51,139.5,9.93160538]
[1765546507255,0.8,139.51,139.5,2.7631466]
[1765546507555,0.8,139.51,139.49,9.93189158]
[1765546510229,0.8,139.51,139.49,7.16874498]
[1765546511357,7.96812078,139.51,139.47,5.94731348]
[1765546511545,7.96812078,139.51,139.46,21.75755128]
[1765546511546,10.73126738,139.51,139.46,21.75755128]
[1765546511729,0.7,139.5,139.46,21.75755128]
[1765546511935,0.7,139.5,139.46,22.98060435]
[1765546512137,0.7,139.5,139.46,15.8102378]
[1765546512758,0.7,139.5,139.46,22.98073421]
[1765546512934,7.86890245,139.5,139.46,22.98073421]
[1765546513462,0.7,139.49,139.46,22.98073421]
[1765546514342,0.7,139.49,139.47,2.7631466]
[1765546514560,0.7,139.5,139.47,2.7631466]
[1765546515440,0.7,139.5,139.48,2.7631466]
[1765546516060,7.8685206,139.5,139.47,9.93294473]
[1765546516470,0.7,139.49,139.47,9.93294473]
[1765546517569,0.7,139.49,139.47,7.16979813]
[1765546518678,7.86911529,139.49,139.46,22.98072076]
[1765546518975,7.86911529,139.49,139.44,16.66994492]
[1765546518976,10.63226189,139.49,139.44,26.16575624]
[1765546519166,10.63226189,139.49,139.44,15.8837535]
[1765546519167,0.7,139.48,139.44,15.8837535]
[1765546519532,7.86985153,139.48,139.44,15.8837535]
[1765546519945,0.71,139.47,139.44,15.8837535]
[1765546520156,0.71,139.47,139.44,9.93644002]
[1765546521169,7.8801381,139.47,139.44,7.17135156]
[1765546521550,0.71,139.46,139.44,7.17135156]
[1765546522765,18.5056407,139.46,139.41,7.17279898]
[1765546522968,18.5056407,139.46,139.41,20.21989018]
[1765546522969,0.71,139.45,139.41,20.21989018]
[1765546523767,0.71,139.45,139.42,2.76508846]
[1765546524068,0.71,139.45,139.43,2.76508846]
[1765546525371,0.71,139.45,139.43,9.93711412]
[1765546525984,0.71,139.47,139.44,15.81217966]
[1765546526147,8.57,139.47,139.45,2.76508846]
[1765546527276,0.71,139.46,139.45,2.76508846]
[1765546528474,8.57,139.47,139.45,9.93607105]
[1765546528775,8.57,139.47,139.46,2.76508846]
[1765546529451,7.86,139.47,139.46,9.9356033]
[1765546530158,0.71,139.49,139.46,9.9356033]
[1765546530364,0.71,139.49,139.48,2.76508846]
[1765546530657,7.87897268,139.49,139.47,2.76508846]
[1765546530856,0.71,139.49,139.47,2.76508846]
[1765546531077,7.87899842,139.49,139.47,2.76508846]
[1765546531569,7.87899842,139.49,139.46,7.17051484]
[1765546531570,0.71,139.48,139.42,29.18507687]
[1765546531793,0.71,139.48,139.44,15.81217966]
[1765546532275,0.71,139.48,139.45,2.76508846]
[1765546533279,0.71,139.48,139.46,2.76508846]
[1765546534165,7.8796063,139.48,139.46,2.76508846]
[1765546534587,0.71,139.47,139.46,2.76508846]
[1765546535286,0.71,139.47,139.45,9.9360318]
[1765546538473,0.71,139.47,139.45,2.76508846]
[1765546540891,0.71,139.47,139.44,22.98350978]
[1765546541187,0.71,139.47,139.44,23.59350978]
[1765546543089,0.71,139.47,139.43,2.76508846]
[1765546543090,7.88012811,139.47,139.43,2.76508846]
[1765546543294,7.88012811,139.47,139.42,22.98447296]
[1765546543488,0.68,139.46,139.42,22.98447296]
[1765546543691,0.68,139.46,139.42,23.59447296]
[1765546543895,0.68,139.46,139.42,22.98447296]
[1765546544191,8.54,139.46,139.42,20.2193845]
[1765546544395,7.17102904,139.45,139.42,20.2193845]
[1765546544587,7.85102904,139.45,139.42,20.2193845]
[1765546545267,0.68,139.44,139.42,13.0470912]
[1765546546093,0.68,139.44,139.4,2.76508846]
[1765546546298,0.68,139.44,139.39,22.98599874]
[1765546546468,7.17205766,139.43,139.39,22.98599874]
[1765546546671,7.17205766,139.43,139.4,2.76508846]
[1765546546872,0.68,139.42,139.4,2.76508846]
[1765546547197,0.68,139.42,139.41,2.76508846]
[1765546547890,10.62508846,139.46,139.41,9.93811265]
[1765546547891,7.85170632,139.44,139.41,9.93811265]
[1765546548269,0.68,139.43,139.42,2.76508846]
[1765546548895,0.68,139.43,139.4,7.78322186]
[1765546548896,0.68,139.43,139.41,2.76508846]
[1765546549394,0.68,139.43,139.4,2.76508846]
[1765546549795,7.85234563,139.43,139.4,2.76508846]
[1765546550298,0.68,139.42,139.4,9.93858928]
[1765546550504,7.85234563,139.43,139.4,9.93858928]
[1765546551097,0.68,139.42,139.4,9.93858928]
[1765546554003,0.68,139.42,139.4,9.94011762]
[1765546554901,0.68,139.42,139.4,2.7666168]
[1765546555104,0.68,139.42,139.4,9.94021447]
[1765546555401,7.85267183,139.42,139.39,2.7666168]
[1765546555600,18.47928863,139.42,139.37,15.813708]
[1765546555901,0.68,139.41,139.37,9.94171576]
[1765546556100,0.68,139.41,139.37,20.22219016]
[1765546556101,3.4466168,139.41,139.37,20.22219016]
[1765546556487,0.68,139.4,139.37,20.22219016]
[1765546556877,7.85360561,139.4,139.37,22.98880696]
[1765546557193,0.68,139.39,139.37,22.98880696]
[1765546559194,0.68,139.39,139.37,20.22219016]
[1765546559502,0.68,139.39,139.37,7.17509896]
[1765546560002,7.85419295,139.39,139.36,0.2]
[1765546560381,0.68,139.38,139.36,0.2]
[1765546561512,7.85465308,139.38,139.36,0.2]
[1765546561836,0.68,139.38,139.36,0.2]
[1765546561988,0.68,139.38,139.36,4.52523367]
[1765546564407,7.86,139.4,139.37,4.93523367]
[1765546564604,17.93215969,139.42,139.39,4.32523367]
[1765546564605,8.54,139.42,139.39,4.32523367]
[1765546564810,0.68,139.41,139.39,4.32523367]
[1765546565187,0.68,139.41,139.38,4.32523367]
[1765546565392,0.68,139.41,139.37,4.32523367]
[1765546565714,0.68,139.41,139.37,4.93523367]
[1765546566091,0.68,139.41,139.38,7.1746305]
[1765546568115,7.86,139.42,139.4,4.32523367]
[1765546568625,7.86,139.42,139.4,4.93523367]
[1765546570020,7.86,139.42,139.4,12.10870137]
[1765546570429,7.86,139.42,139.41,4.32523367]
[1765546572201,7.86,139.42,139.4,11.49870137]
[1765546575233,0.65,139.43,139.4,11.49870137]
[1765546575533,0.65,139.43,139.4,12.10870137]
[1765546575838,0.65,139.43,139.41,4.32523367]
[1765546576328,7.17155737,139.44,139.41,11.49827013]
[1765546576533,0.65,139.43,139.41,11.49827013]
[1765546577204,8.51,139.45,139.42,4.93523367]
[1765546577517,8.51,139.45,139.44,4.32523367]
[1765546578526,15.68102904,139.45,139.43,4.32523367]
[1765546578703,0.65,139.44,139.43,4.32523367]
[1765546579104,0.65,139.44,139.42,4.32523367]
[1765546580932,7.82166004,139.44,139.4,7.17329828]
[1765546581137,7.82166004,139.44,139.41,4.32523367]
[1765546581438,7.17166004,139.44,139.41,4.32523367]
[1765546583115,7.17166004,139.44,139.42,4.32523367]
[1765546589351,7.17166004,139.44,139.4,7.17329828]
[1765546589541,7.17166004,139.44,139.42,4.32179136]
[1765546589741,7.86,139.45,139.43,4.32179136]
[1765546589945,7.86,139.45,139.44,4.32179136]
[1765546593565,15.03103916,139.45,139.42,4.32179136]
[1765546594056,15.03103916,139.45,139.41,7.17289743]
[1765546594057,15.03103916,139.45,139.41,4.32179136]
[1765546594625,32.95861176,139.45,139.41,4.32179136]
[1765546596560,15.03103916,139.45,139.43,4.32179136]
[1765546597130,7.86,139.45,139.44,4.32179136]
[1765546602561,7.86,139.45,139.42,8.80994492]
[1765546602753,7.86,139.45,139.44,4.32179136]
[1765546604464,7.86,139.47,139.44,8.64358272]
[1765546604758,7.86,139.47,139.46,4.32179136]
[1765546605641,7.2681717,139.51,139.47,13.0470912]
[1765546605837,0.1,139.51,139.5,4.32179136]
[1765546606559,0.1,139.51,139.5,25.31352764]
[1765546606772,0.1,139.51,139.5,32.48198642]
[1765546610951,0.1,139.51,139.5,28.16019506]
[1765546613762,0.1,139.51,139.5,32.48198642]
[1765546614740,0.1,139.54,139.53,13.0470912]
[1765546614955,0.1,139.54,139.53,17.36888256]
[1765546615353,0.1,139.54,139.51,4.32179136]
[1765546615559,0.1,139.54,139.53,4.32179136]
[1765546619962,0.1,139.54,139.53,2.76162748]
[1765546621252,0.1,139.54,139.5,7.16827997]
[1765546621470,0.1,139.54,139.51,2.76162748]
[1765546621656,7.96,139.54,139.49,13.0470912]
[1765546621863,7.1669175,139.53,139.51,2.76162748]
[1765546622181,15.12653276,139.54,139.52,2.76162748]
[1765546623387,15.12653276,139.54,139.51,2.7623561]
[1765546624268,15.12653276,139.54,139.5,2.7623561]
[1765546624574,2.7623561,139.52,139.47,2.7623561]
[1765546626885,7.16794495,139.51,139.47,2.7623561]
[1765546627061,7.86,139.5,139.47,2.7623561]
[1765546628682,7.16897268,139.49,139.47,2.7623561]
[1765546629590,7.16897268,139.49,139.46,2.7623561]
[1765546638089,27.85376049,139.49,139.44,2.7623561]
[1765546638274,2.7623561,139.48,139.43,2.7623561]
[1765546638475,7.86,139.47,139.42,2.7623561]
[1765546639173,7.86,139.47,139.43,2.7623561]
[1765546639684,7.86,139.47,139.39,30.34078785]
[1765546639685,25.09680194,139.46,139.37,17.93686713]
[1765546639869,2.7623561,139.45,139.4,2.7623561]
[1765546640197,7.86,139.44,139.4,2.7623561]
[1765546640576,10.6223561,139.44,139.39,2.7623561]
[1765546640792,7.86,139.44,139.38,2.7623561]
[1765546641106,2.7623561,139.43,139.37,2.7623561]
[1765546641520,11.77230102,139.43,139.37,2.7623561]
[1765546641686,7.17257208,139.42,139.37,2.7623561]
[1765546641886,7.86,139.41,139.37,2.7623561]
[1765546642088,8.55,139.41,139.37,3.3723561]
[1765546642282,8.55,139.41,139.38,2.7623561]
[1765546643195,8.55,139.41,139.37,0.61]
[1765546643399,0.69,139.4,139.37,3.3723561]
[1765546643600,0.69,139.4,139.37,2.7623561]
[1765546644003,8.55,139.41,139.38,2.7623561]
[1765546644588,7.86,139.41,139.39,3.3723561]
[1765546644789,7.86,139.41,139.4,2.7623561]
[1765546646191,7.86,139.41,139.4,3.3723561]
[1765546647102,7.17220631,139.43,139.4,3.3723561]
[1765546647317,15.03220631,139.43,139.41,2.7623561]
[1765546648482,15.72220631,139.43,139.41,2.7623561]
[1765546651489,15.03220631,139.43,139.41,2.7623561]
[1765546651818,15.03220631,139.43,139.41,3.3723561]
[1765546652324,15.03220631,139.43,139.41,2.7623561]
[1765546652491,15.72220631,139.43,139.41,2.7623561]
[1765546652691,15.03220631,139.43,139.41,3.3723561]
[1765546653424,7.86,139.43,139.42,3.3723561]
[1765546653798,7.86,139.43,139.42,2.7623561]
[1765546654119,15.03205766,139.43,139.42,2.7623561]
[1765546656615,15.03205766,139.43,139.41,2.7623561]
[1765546656826,15.72205766,139.43,139.41,2.7623561]
[1765546658395,15.72205766,139.43,139.4,3.3723561]
[1765546658826,15.72205766,139.43,139.4,3.37661736]
[1765546661995,33.65220181,139.43,139.4,2.76661736]
[1765546662195,0.69,139.42,139.39,2.76661736]
[1765546662425,0.69,139.42,139.39,3.37661736]
[1765546662716,7.86298018,139.42,139.39,3.37661736]
[1765546665315,7.86298018,139.42,139.39,16.42370856]
[1765546665505,25.79441039,139.42,139.39,16.42370856]
[1765546667899,25.79441039,139.42,139.4,2.76661736]
[1765546668315,0.69,139.41,139.37,0.61]
[1765546668494,8.55,139.41,139.37,2.76661736]
[1765546668698,8.55,139.41,139.37,3.37661736]
[1765546668919,0.69,139.4,139.37,3.37661736]
[1765546669930,7.17411579,139.39,139.38,0.61]
[1765546670218,7.17385535,139.4,139.38,3.37661736]
[1765546670609,7.17385535,139.4,139.39,0.61]
[1765546671207,7.17385535,139.4,139.37,2.76661736]
[1765546671208,25.80785821,139.4,139.37,2.76661736]
[1765546671410,0.7,139.39,139.37,2.76661736]
[1765546672014,7.1746305,139.38,139.37,2.76661736]
[1765546672518,7.1746305,139.38,139.37,3.37661736]
[1765546673212,7.86,139.41,139.37,3.37661736]
[1765546673402,7.86,139.41,139.4,2.76661736]
[1765546673403,7.17324929,139.41,139.4,2.76661736]
[1765546673601,0.7,139.4,139.36,0.2]
[1765546673806,8.56,139.4,139.37,2.76661736]
[1765546674006,7.17411579,139.39,139.36,0.81]
[1765546674221,7.17411579,139.39,139.37,2.76661736]
[1765546674458,0.7,139.38,139.36,13.2470912]
[1765546674609,25.10940526,139.39,139.37,2.76661736]
[1765546675033,25.80940526,139.39,139.37,2.76661736]
[1765546675901,25.10940526,139.39,139.36,0.2]
[1765546676110,7.17514529,139.37,139.36,0.2]
[1765546676518,15.73514529,139.37,139.36,0.2]
[1765546682333,20.06281043,139.37,139.36,0.2]
[1765546682935,15.73514529,139.37,139.36,0.2]
[1765546694635,15.03514529,139.37,139.36,0.2]
[1765546695842,15.73514529,139.37,139.36,0.2]
[1765546696647,15.03514529,139.37,139.36,0.2]
[1765546697152,15.03514529,139.37,139.36,0.81]
[1765546697355,15.03514529,139.37,139.36,5.13740558]
[1765546700461,13.0470912,139.41,139.37,8.80994492]
[1765546700462,17.93324785,139.41,139.37,8.80994492]
[1765546700629,7.17308657,139.41,139.4,4.32740558]
[1765546701053,7.17308657,139.41,139.4,4.93740558]
[1765546701845,32.96400229,139.42,139.39,4.32740558]
[1765546702238,33.66400229,139.42,139.39,4.93740558]
[1765546702459,33.66400229,139.42,139.4,4.32740558]
[1765546703365,0.7,139.41,139.38,4.32740558]
[1765546703536,0.7,139.41,139.38,4.93740558]
[1765546703952,0.7,139.41,139.39,4.32740558]
[1765546703953,7.17360114,139.4,139.39,4.32740558]
[1765546706249,7.17360114,139.4,139.38,4.93740558]
[1765546707062,7.17360114,139.4,139.38,4.32740558]
[1765546707236,7.17360114,139.4,139.38,4.93740558]
[1765546707437,15.03360114,139.4,139.38,4.93740558]
[1765546710169,7.86,139.4,139.38,4.93740558]
[1765546712061,7.86,139.4,139.39,4.93740558]
[1765546712755,7.17230044,139.43,139.39,4.93740558]
[1765546712947,7.86,139.42,139.41,4.32740558]
[1765546713367,7.86,139.42,139.41,4.93740558]
[1765546713670,7.17174012,139.44,139.41,4.93740558]
[1765546713865,15.03174012,139.44,139.42,4.93740558]
[1765546714369,15.03174012,139.44,139.42,0.61]
[1765546714669,15.03174012,139.44,139.41,4.93740558]
[1765546714967,15.73174012,139.44,139.41,4.93740558]
[1765546716465,7.17000071,139.47,139.43,4.32740558]
[1765546716655,15.03000071,139.47,139.45,4.32740558]
[1765546716843,15.73000071,139.47,139.45,4.32740558]
[1765546717368,15.03000071,139.47,139.45,4.93740558]
[1765546718471,7.86,139.48,139.46,4.93740558]
[1765546718674,7.86,139.48,139.47,4.32740558]
[1765546719172,7.86,139.48,139.47,4.93740558]
[1765546719346,7.86,139.48,139.47,4.32740558]
[1765546720271,15.02948666,139.48,139.47,4.32740558]
[1765546721249,7.86,139.48,139.47,4.32740558]
[1765546723073,7.86,139.48,139.47,4.93740558]
[1765546723956,8.56,139.5,139.47,12.10740629]
[1765546724165,15.72845878,139.5,139.46,7.86]
[1765546724360,0.7,139.49,139.47,4.32740558]
[1765546726186,7.86927548,139.49,139.47,4.32740558]
[1765546726678,0.7,139.48,139.47,4.32740558]
[1765546727068,0.7,139.48,139.46,4.31902129]
[1765546727783,7.86927548,139.49,139.47,4.31902129]
[1765546728178,15.02854002,139.5,139.47,4.31902129]
[1765546728564,0.7,139.49,139.47,4.31902129]
[1765546729089,0.7,139.49,139.48,4.31902129]
[1765546729267,0.7,139.49,139.47,4.31902129]
[1765546731686,7.86913025,139.49,139.45,7.17089255]
[1765546731885,7.86913025,139.49,139.46,4.31902129]
[1765546732266,7.86913025,139.49,139.45,7.78089255]
[1765546732466,0.7,139.48,139.46,4.31902129]
[1765546734591,0.7,139.48,139.45,12.09991384]
[1765546735200,7.86969339,139.48,139.44,7.86]
[1765546735377,7.86969339,139.48,139.45,4.31902129]
[1765546735571,7.86969339,139.48,139.45,4.92902129]
[1765546735764,0.7,139.48,139.45,12.10002538]
[1765546735964,0.7,139.48,139.46,4.31902129]
[1765546739071,15.72860986,139.5,139.47,4.92902129]
[1765546740892,7.16812916,139.51,139.49,4.31902129]
[1765546741086,7.86,139.5,139.49,4.92902129]
[1765546741465,7.86,139.5,139.49,4.31902129]
[1765546741879,7.86,139.5,139.49,2.76325695]
[1765546742561,7.86,139.5,139.48,0.61]
[1765546742765,7.86,139.5,139.49,2.76325695]
[1765546743079,7.86,139.5,139.48,3.37325695]
[1765546743482,7.86,139.5,139.48,10.54272833]
[1765546744481,7.86,139.5,139.48,3.37325695]
[1765546746170,15.72857238,139.5,139.47,10.5430156]